Cogmind - Beta 15 @@@ ROGUE MODE // 2025.06.30 @ 23:05:58 Player: Florist Result: Destroyed by Striker with Compact Linear Accelerator Performance ------------- Evolutions (6) 3000 Regions Visited (22) 4400 Robots Destroyed (212) 1060 Value Destroyed (5425) 5425 Prototype IDs (44) 880 Alien Tech Used (3) 600 Bonus (2430) 2430 TOTAL SCORE: 17795 Bonus ------- High Alert Combat Kills 315 Follower Combat Kills 169 Network Hubs Disabled 200 Met Data Miner 300 Met Zhirov 300 Met Warlord at Base 500 MAIN.C Attacked Warlord 500 Warlord Defense Kills 146 Cogmind --------- Core Integrity 0/1150 Matter 157/300 Energy 170/170 System Corruption 5% Temperature Warm (181) Movement Flying (18) Location -4/Warlord Parts ------- > --- POWER (1) -------- Light Antimatter Reactor > --- PROPULSION (7) --- VTOL Module VTOL Module VTOL Module VTOL Module Improved Diametric Drive Improved Diametric Drive > --- UTILITY (9) ------ Machine Analyzer Spectral Analyzer Advanced Signal Interpreter Salvage Targeting Computer Advanced Targeting Computer Advanced Targeting Computer Experimental Targeting Computer Experimental Core Analyzer Improved Core Shielding > --- WEAPON (2) ------- Helical Railgun Helical Railgun > --- INVENTORY (5) ---- Advanced Remote Shield Vortex Rifle (35) Vortex Rifle (35) Remote Datajack Peak State ------------ > --- POWER ------------ Light Antimatter Reactor > --- PROPULSION ------- VTOL Module VTOL Module VTOL Module VTOL Module VTOL Module Improved Diametric Drive Improved Diametric Drive > --- UTILITY ---------- Machine Analyzer Spectral Analyzer Advanced Signal Interpreter Salvage Targeting Computer Advanced Targeting Computer Advanced Targeting Computer Experimental Targeting Computer Experimental Core Analyzer Improved Core Shielding > --- WEAPON ----------- Helical Railgun Helical Railgun > --- INVENTORY -------- Advanced Remote Shield Vortex Rifle Vortex Rifle Remote Datajack [Rating: 101] Favorites ----------- Power Ion Engine Engine Ion Engine Power Core Light Fission Core Reactor Micro Antimatter Reactor Propulsion VTOL Module Treads Light Treads Leg Improved Carbon-fiber Leg Wheel Compact Wheel Hover Unit Improved Gravmag System Flight Unit VTOL Module Utility Improved Signal Interpreter Device Seismic Detector Storage Small Storage Unit Processor Improved Signal Interpreter Hackware System Shield Protection Hardened Light Armor Plating Weapon Assault Rifle Energy Gun Vortex Rifle Energy Cannon Vortex Driver Ballistic Gun Assault Rifle Launcher Rocket Launcher Special Weapon Remote Datajack Impact Weapon Great Maul Slashing Weapon Chainsword Piercing Weapon Lance Build | -11 -10 -9 -8 -7 -7 -7 -7 -6 -6 -6 -6 -6 -6 -5 -5 -5 -5 -4 -4 -4 -4 -4 ------- Run | Yrd Mat Mat Mat Fac Low Low Dat Pro Fac Ext Cet Arc Hub Fac Upp Upp Zhi Pro Fac Upp Upp War Slots Evolved 12 | . . 2 2 2 . . . . 2 . . . . 2 . . . . 2 . . . Power . | . . . . . . . . . . . . . . . . . . . . . . . Propulsion 5 | . . 2 . 2 . . . . . . . . . 1 . . . . . . . . Utility 7 | . . . 2 . . . . . 2 . . . . 1 . . . . 2 . . . Weapon . | . . . . . . . . . . . . . . . . . . . . . . . Parts Attached 196 | 7 7 31 38 17 . 1 . 1 10 5 2 . . 37 . . 3 . 5 3 6 23 Power 30 | 1 2 4 4 4 . . . . 2 2 . . . 5 . . 1 . . 1 1 3 Engine 14 | 1 2 4 . 2 . . . . . 2 . . . 1 . . . . . . 1 1 Core 12 | . . . 4 2 . . . . 2 . . . . 3 . . . . . . . 1 Reactor 4 | . . . . . . . . . . . . . . 1 . . 1 . . 1 . 1 Propulsion 78 | 2 1 17 16 8 . . . 1 4 1 . . . 16 . . . . 1 2 2 7 Treads 27 | 2 1 16 8 . . . . . . . . . . . . . . . . . . . Leg 4 | . . . 4 . . . . . . . . . . . . . . . . . . . Wheel 4 | . . . 4 . . . . . . . . . . . . . . . . . . . Hover 8 | . . . . . . . . . . 1 . . . 7 . . . . . . . . Flight 35 | . . 1 . 8 . . . 1 4 . . . . 9 . . . . 1 2 2 7 Utility 53 | 2 1 5 8 4 . . . . 4 1 1 . . 11 . . 2 . 4 . 1 9 Device 14 | 1 . 1 2 2 . . . . 1 1 . . . 2 . . . . 3 . . 1 Storage 5 | 1 1 1 . 1 . . . . . . . . . 1 . . . . . . . . Processor 17 | . . 1 2 1 . . . . . . 1 . . 3 . . . . 1 . 1 7 Hackware 8 | . . . . . . . . . 3 . . . . 4 . . 1 . . . . . Protection 9 | . . 2 4 . . . . . . . . . . 1 . . 1 . . . . 1 Artifact . | . . . . . . . . . . . . . . . . . . . . . . . Weapon 35 | 2 3 5 10 1 . 1 . . . 1 1 . . 5 . . . . . . 2 4 Energy Gun 3 | 1 . . . . . . . . . . . . . 1 . . . . . . . 1 Energy Cannon 1 | . . . . . . . . . . . . . . . . . . . . . . 1 Ballistic Gun 19 | 1 3 5 6 . . . . . . . . . . . . . . . . . 2 2 Ballistic Cannon . | . . . . . . . . . . . . . . . . . . . . . . . Launcher 5 | . . . 2 . . 1 . . . 1 1 . . . . . . . . . . . Special Weapon 1 | . . . . . . . . . . . . . . 1 . . . . . . . . Impact Weapon 2 | . . . 2 . . . . . . . . . . . . . . . . . . . Slashing Weapon 3 | . . . . 1 . . . . . . . . . 2 . . . . . . . . Piercing Weapon 1 | . . . . . . . . . . . . . . 1 . . . . . . . . Special Melee Weapon . | . . . . . . . . . . . . . . . . . . . . . . . Unidentified Prototypes 15 | . . 2 . . . . . . . . . . . 1 . . 3 . . . 1 8 Corrupted Parts 2 | . . . . . . . . . . . . . . . . . . . . . 1 1 System Corruption 11 | . . . . . . . . . . . . . . . . . . . . . 6 5 Parts Lost 74 | . 4 8 19 1 . . . 1 1 6 7 1 1 8 . . . . 10 3 4 . Power 13 | . 1 3 3 . . . . . 1 2 1 . . . . . . . . 1 1 . Propulsion 35 | . 1 1 11 1 . . . 1 . 3 1 1 1 5 . . . . 5 2 2 . Utility 16 | . . 1 4 . . . . . . 1 2 . . 3 . . . . 5 . . . Weapon 10 | . 2 3 1 . . . . . . . 3 . . . . . . . . . 1 . Highest Loss Streak 7 | . 1 2 6 1 . . . 1 1 5 7 1 1 2 . . . . 7 3 4 . To Critical Strikes 6 | . . 1 2 . . . . . . . 1 . . . . . . . 1 1 . . Average Backups 13 | 2 13 22 22 8 8 8 8 7 7 6 4 4 4 5 7 8 8 8 6 4 3 4 Power . | . . . . . 1 1 1 1 . . . . . 1 2 2 2 2 1 . . . Propulsion 3 | 1 4 6 5 . 1 1 1 . . . . . . . . . . . . . . . Utility 4 | . 3 7 8 5 4 4 5 5 4 5 4 4 4 2 3 3 2 2 . . . . Weapon 4 | . 4 7 8 2 2 1 1 1 1 1 . . . . . 1 1 1 1 1 1 2 Tool/Special . | . . . . . . . . . . . . . . . . . . . . . . . Unused Backups 27 | . . 11 2 3 1 . . . 1 . . . . 4 . . . . 2 . . 3 Power 1 | . . . . . . . . . . . . . . . . . . . 1 . . . Propulsion 4 | . . 2 . . . . . . . . . . . 1 . . . . . . . 1 Utility 11 | . . 2 2 2 1 . . . 1 . . . . 3 . . . . . . . . Weapon 11 | . . 7 . 1 . . . . . . . . . . . . . . 1 . . 2 Tool/Special . | . . . . . . . . . . . . . . . . . . . . . . . Average Slot Usage (%) 89 | . 97 95 90 90 92 95 100 97 92 84 70 46 37 90 94 94 93 94 85 23 28 72 Engine 4 | . 13 9 1 4 . . . . . 2 4 . . . . . . . . . 1 1 Core 2 | . . . 4 2 7 7 7 7 5 3 . . . 3 . . . . . . . 1 Treads 16 | . 25 41 22 . . . . . . . . . . . . . . . . . . . Leg 1 | . . . 7 1 . . . . . . . . . . . . . . . . . . Hover 1 | . . . . . . . . . . . 6 6 6 15 . . . . . . . . Flight 14 | . . . . 42 46 46 46 43 39 31 16 13 5 19 35 35 35 35 28 5 4 18 Device 8 | . 14 7 4 14 15 15 15 15 13 12 10 6 5 5 5 5 4 5 14 . . 2 Storage 7 | . 14 11 9 7 7 7 7 7 6 6 6 6 6 2 5 5 5 5 4 . . . Processor 7 | . . . 10 7 7 7 7 7 6 6 11 13 13 13 17 17 17 17 12 10 13 35 Hackware 4 | . . . . . . . . . 12 13 6 . . 12 11 11 11 11 9 5 5 3 Protection 2 | . . 3 6 . . . . . . . . . . 1 . . . . . . . 1 Ballistic Gun 11 | . 27 21 17 . . . . . . . . . . . . . . . . . 1 2 Slashing Weapon 2 | . . . . 3 7 7 7 7 5 6 2 . . 4 5 5 5 5 4 . 2 . Peak Build Rating 101 | 7 9 21 37 37 30 32 32 34 53 57 52 31 26 85 63 63 70 67 79 44 43 101 Average Rating 33 | 6 7 13 25 27 30 30 32 32 45 47 41 30 25 64 62 63 65 67 69 33 31 74 On Entrance 35 | . 7 9 19 37 30 30 32 32 34 52 47 31 26 17 62 63 63 67 67 31 31 19 Naked Turns . | . . . . . . . . . . . . . . . . . . . . . . . Heaviest Build 100 | 13 50 98 100 97 16 20 20 20 20 25 21 6 6 26 20 20 20 20 23 15 15 39 Greatest Support 82 | 40 40 80 82 66 20 20 20 20 28 28 21 10 9 70 26 26 26 26 26 23 15 34 Greatest Overweight (x) 9 | . 2 1 9 3 . . . . . 1 1 . 1 4 . . . . 1 . 1 2 Average Overweight (x) . | . . . 1 . . . . . . . . . . . . . . . . . . . Largest Inventory Capacity 25 | 8 20 25 25 25 8 8 8 8 8 8 8 8 8 8 8 8 8 8 8 5 5 5 Average Capacity 15 | 7 17 24 25 9 8 8 8 8 7 8 8 8 8 6 8 8 8 8 7 5 5 5 Most Carried 25 | 4 19 25 25 24 8 8 8 8 8 8 6 4 6 8 8 8 8 8 7 5 5 5 Average Carried 13 | 2 13 22 22 8 7 7 8 7 7 6 4 4 4 5 7 8 7 8 6 4 3 4 Final Capacity 25 | 8 20 25 25 8 8 8 8 8 8 8 8 8 8 8 8 8 8 8 5 5 5 5 Final Carried 25 | 4 19 25 24 8 8 8 8 7 7 7 4 4 6 7 8 8 8 8 5 5 3 4 Class Distribution -------------------- 31% | Scavenger-Mutant 26% | Mutant 13% | Scavenger-Scout 12% | Hacker-Scout 7% | Scout Dominant Class ---------------- Mutant | -10/Materials Scavenger-Mutant | -9/Materials Scavenger-Mutant | -8/Materials Scout | -7/Factory Scout | -7/Lower Caves Scout | -7/Lower Caves Scout | -7/Data Miner Scout | -6/Proximity Caves Hacker-Scout | -6/Factory Hacker-Scout | -6/Extension Scout | -6/Cetus Scout | -6/Archives Scout | -6/Hub_04(d) Scavenger-Scout | -5/Factory Scavenger-Scout | -5/Upper Caves Scavenger-Scout | -5/Upper Caves Scavenger-Scout | -5/Zhirov Scavenger-Scout | -4/Proximity Caves Scavenger-Scout | -4/Factory Mutant | -4/Upper Caves Mutant | -4/Upper Caves Commander-Mutant | -4/Warlord Resources | -11 -10 -9 -8 -7 -7 -7 -7 -6 -6 -6 -6 -6 -6 -5 -5 -5 -5 -4 -4 -4 -4 -4 ----------- Run | Yrd Mat Mat Mat Fac Low Low Dat Pro Fac Ext Cet Arc Hub Fac Upp Upp Zhi Pro Fac Upp Upp War Matter Collected 5764 | 303 460 1399 1499 257 11 . . 6 171 270 . . . 692 30 . 55 52 45 52 85 377 Remotely . | . . . . . . . . . . . . . . . . . . . . . . . Salvage Created 8636 | 126 766 1928 2256 375 . . . . 304 589 22 . . 1496 14 . 230 . 103 . 352 75 Parts 473 | 9 59 120 138 14 . . . . 18 33 . . . 62 . . 2 . 9 . 7 2 Haulers Intercepted 19 | . 2 6 2 4 . . . . 1 . . . . 4 . . . . . . . . Recyclers Shooed 6 | . 3 . 3 . . . . . . . . . . . . . . . . . . . Parts Field Recycled . | . . . . . . . . . . . . . . . . . . . . . . . Retrieved Matter . | . . . . . . . . . . . . . . . . . . . . . . . Parts Self-Destructed 7 | . . . . . . . . . . . . . . . . . 1 . . 2 4 . Prevented 4 | . . . . . . . . . . . . . . . . 2 . . . 2 . . Kills | -11 -10 -9 -8 -7 -7 -7 -7 -6 -6 -6 -6 -6 -6 -5 -5 -5 -5 -4 -4 -4 -4 -4 ------- Run | Yrd Mat Mat Mat Fac Low Low Dat Pro Fac Ext Cet Arc Hub Fac Upp Upp Zhi Pro Fac Upp Upp War Combat Hostiles Destroyed 117 | . 15 34 45 3 . . . . . 4 . . . 10 . . . . 1 . 4 1 Melee 10 | . . . . . . . . . . . . . . 8 . . . . 1 . 1 . Guns 92 | . 15 34 39 . . . . . . . . . . . . . . . . . 3 1 AOE 15 | . . . 6 3 . . . . . 4 . . . 2 . . . . . . . . Classes Destroyed 18 | 2 6 4 3 . . . . . . 1 . . . 1 . . . . 1 . . . Worker 11 | . . 3 4 . . . . . 1 . . . . 2 . . . . 1 . . . Builder 13 | . 1 . 2 . . . . . 2 6 . . . 2 . . . . . . . . Tunneler 6 | 3 . 1 1 1 . . . . . . . . . . . . . . . . . . Hauler 19 | . 2 6 2 4 . . . . 1 . . . . 4 . . . . . . . . Recycler 10 | 1 1 1 2 . . . . . . 2 . . . 3 . . . . . . . . Mechanic 4 | . . . 1 2 . . . . . . . . . 1 . . . . . . . . Operator 9 | . 2 2 3 . . . . . 1 . . . . . . . . . 1 . . . Drone 1 | . . . . . . . . . . . . . . . . . . . 1 . . . Watcher 24 | . 3 5 2 2 . . . . 4 1 1 . . 4 . . . . 2 . . . Swarmer 37 | . 6 7 11 3 . . . . . . . . . 6 . . . . . . 4 . Grunt 48 | . 9 15 22 . . . . . . 1 . . . . . . . . . . . 1 Brawler 2 | . . 1 . . . . . . . . . . . 1 . . . . . . . . Duelist 2 | . . 1 . . . . . . . . . . . 1 . . . . . . . . Sentry 22 | . . 10 9 . . . . . . 2 . . . 1 . . . . . . . . Specialist 2 | . . . 2 . . . . . . . . . . . . . . . . . . . Programmer 1 | . . . . . . . . . . . . . . 1 . . . . . . . . Heavy 1 | . . . 1 . . . . . . . . . . . . . . . . . . . Decomposer 1 | . . . . . . . . . . . . . . . 1 . . . . . . . Guerrilla 1 | . . . . . . . . . . 1 . . . . . . . . . . . . Best Kill Streak 10 | 1 4 5 10 4 . . . . 1 7 1 . . 7 . . . . 2 . 4 1 Combat Bots Only 7 | . 3 5 7 3 . . . . . 3 . . . 4 . . . . 1 . 4 1 Max Kills in Single Turn 3 | 1 2 1 3 2 . . . . 1 1 1 . . 1 1 . . . 1 . 2 1 Gunslinging 1 | . . . 1 . . . . . . . . . . . . . . . . . . . Exploded 3 | . . . 3 2 . . . . . 1 . . . 1 . . . . . . . . Melee 1 | . . . . . . . . . . . . . . 1 . . . . 1 . 1 . Uniques/NPCs Destroyed . | . . . . . . . . . . . . . . . . . . . . . . . Combat | -11 -10 -9 -8 -7 -7 -7 -7 -6 -6 -6 -6 -6 -6 -5 -5 -5 -5 -4 -4 -4 -4 -4 -------- Run | Yrd Mat Mat Mat Fac Low Low Dat Pro Fac Ext Cet Arc Hub Fac Upp Upp Zhi Pro Fac Upp Upp War Hostile Shots Fired 1065 | . 102 190 241 33 2 . . 12 26 111 35 13 14 79 . . . 4 87 48 60 8 Missed 378 | . 26 44 51 20 1 . . 8 17 58 12 7 6 26 . . . 2 54 24 18 4 Hits 687 | . 76 146 190 13 1 . . 4 9 53 23 6 8 53 . . . 2 33 24 42 4 Melee 16 | . . 11 . . . . . . . . . . . 1 . . . . 4 . . . Projectile 671 | . 76 135 190 13 1 . . 4 9 53 23 6 8 52 . . . 2 29 24 42 4 AOE 3 | . . . . . . . . . . . . . . . . . . . 3 . . . Critical Strikes 26 | . 1 5 10 . . . . . . . 6 . . . . . . . 2 1 1 . Actively Blocked 1 | . . . 1 . . . . . . . . . . . . . . . . . . . Part Disruptions 4 | . . . . . . . . . . . . . . 1 . . . . . . . 3 Damage Taken 11119 | . 797 1908 3201 158 15 . . 82 134 494 632 136 191 1104 . . . 39 907 423 677 221 Core 3076 | . 116 323 394 27 . . . 23 40 128 284 88 132 336 . . . 22 510 210 392 51 Absorbed by Shields 48 | . . . . . . . . . . 48 . . . . . . . . . . . . Redirected to Shielding 126 | . . . 106 . . . . . . . . . . . . . . . . . . 20 Regen/Repaired (Parts) 152 | . . . . 102 . . . . 29 . . . . 17 . . . . . . . 4 Core Remaining (%) 53 | 100 53 19 28 . . . . 92 . . . . 20 . . . . 64 . . . . Volleys Fired 444 | 11 63 166 156 3 . . . 2 . 14 8 . . 3 . . . . . . 2 16 Largest 2 | 2 2 2 2 1 . . . 1 . 1 1 . . 1 . . . . . . 1 2 Hottest 76 | 70 40 48 66 33 . . . 33 . 43 43 . . 69 . . . . . . 30 76 Shots Fired 841 | 22 124 329 308 3 . . . 2 . 14 8 . . 3 . . . . . . 2 26 Gun 798 | 22 124 329 298 . . . . . . . . . . 3 . . . . . . 2 20 Cannon . | . . . . . . . . . . . . . . . . . . . . . . . Launcher 37 | . . . 10 3 . . . 2 . 14 8 . . . . . . . . . . . Special 6 | . . . . . . . . . . . . . . . . . . . . . . 6 Kinetic 784 | 11 124 329 298 . . . . . . . . . . . . . . . . . 2 20 Thermal 14 | 11 . . . . . . . . . . . . . 3 . . . . . . . . Explosive 37 | . . . 10 3 . . . 2 . 14 8 . . . . . . . . . . . Electromagnetic . | . . . . . . . . . . . . . . . . . . . . . . . Robot Hit Streak 28 | 4 16 20 28 2 . . . . . 12 14 . . . . . . . . . 16 24 Robot Miss Streak 5 | 4 5 5 3 1 . . . . . . . . . . . . . . . . . 1 Penetration Max 1 | . . . . . . . . . . . . . . . . . . . . . 1 1 Secondary Targets 10 | . . 4 6 . . . . . . . . . . . . . . . . . . . Max Gunslinging Chain 1 | . . 1 1 . . . . . . . . . . . . . . . . . . . Shots Hit Robots 710 | 12 86 225 235 18 . . . . 16 21 2 . . 46 1 . 6 . 8 . 12 22 Core Hits 364 | 5 39 81 124 9 . . . . 6 27 19 . . 40 . . 1 . 3 . 5 5 Critical Kills 3 | . . 1 1 1 . . . . . . . . . . . . . . . . . . Critical Parts Destroyed 7 | . . 3 3 1 . . . . . . . . . . . . . . . . . . Critical Strikes 18 | 1 . 4 4 2 . . . . . . . . . 7 . . . . . . . . Burn 1 | 1 . . . . . . . . . . . . . . . . . . . . . . Destroy 8 | . . 4 4 . . . . . . . . . . . . . . . . . . . Smash 2 | . . . . 2 . . . . . . . . . . . . . . . . . . Sever 6 | . . . . . . . . . . . . . . 6 . . . . . . . . Impale 1 | . . . . . . . . . . . . . . 1 . . . . . . . . Melee Attacks 327 | . . . 5 37 2 . . . 79 10 . . . 117 21 . 6 4 29 3 14 . Impact 26 | . . . 5 21 . . . . . . . . . . . . . . . . . . Slashing 270 | . . . . 16 2 . . . 79 10 . . . 97 18 . 4 3 24 3 14 . Piercing 31 | . . . . . . . . . . . . . . 20 3 . 2 1 5 . . . Sneak Attacks 38 | . . . . 7 . . . . 7 6 . . . 13 1 . . . 4 . . . Combat Hostiles 1 | . . . . . . . . . . . . . . . . . . . 1 . . . Follow-up Attacks 12 | . . . . . . . . . . . . . . 8 . . 2 . 2 . . . Damage Inflicted 19247 | 140 1118 3175 4279 1325 . . . 20 993 1897 774 . . 3051 127 . 510 . 594 . 762 482 Guns 8508 | 140 1118 3167 3542 . . . . . . . . . . . . . . . . . 59 482 Cannons . | . . . . . . . . . . . . . . . . . . . . . . . Explosions 3407 | . . . 737 217 . . . 20 . 1236 774 . . 423 . . . . . . . . Melee 7321 | . . . . 1108 . . . . 993 661 . . . 2628 127 . 510 . 591 . 703 . Ramming 11 | . . 8 . . . . . . . . . . . . . . . . 3 . . . Kinetic 8433 | 65 1118 3167 3542 . . . . . . . . . . . . . . . . . 59 482 Thermal 156 | 75 . . . . . . . . . . . . . 81 . . . . . . . . Explosive 2984 | . . . 737 217 . . . 20 . 1236 774 . . . . . . . . . . . Electromagnetic 342 | . . . . . . . . . . . . . . 342 . . . . . . . . Impact 749 | . . . . 749 . . . . . . . . . . . . . . . . . . Slashing 6099 | . . . . 359 . . . . 993 661 . . . 2356 127 . 344 . 556 . 703 . Piercing 473 | . . . . . . . . . . . . . . 272 . . 166 . 35 . . . Highest Corruption 13 | . 2 5 . . . . . . . . . . 1 8 8 8 8 8 7 7 13 13 Average Corruption 5 | . 2 4 . . . . . . . . . . 1 5 8 8 8 8 6 7 8 5 Corruption Purged . | . . . . . . . . . . . . . . . . . . . . . . . Corruption Blocked . | . . . . . . . . . . . . . . . . . . . . . . . Effects 157 | . 10 32 . . . . . . . . . . . 40 7 3 3 20 8 11 7 16 Message Errors 35 | . 1 4 . . . . . . . . . . . 10 . . 2 8 . 3 2 5 Matter Fused 43 | . 2 10 . . . . . . . . . . . 11 3 1 . 4 2 3 1 6 Heat Flow Errors 22 | . 2 5 . . . . . . . . . . . 5 3 . . . 1 2 1 3 Energy Discharges 22 | . 3 5 . . . . . . . . . . . 4 1 . . 3 2 1 2 1 Parts Rejected 3 | . . . . . . . . . . . . . . 2 . . . . 1 . . . Data Loss (minor) 22 | . 1 5 . . . . . . . . . . . 7 . 1 . 5 1 2 . . Data Loss (major) 7 | . 1 2 . . . . . . . . . . . . . 1 1 . 1 . . 1 Alerts 1 | . . . . . . . . . . . . . . 1 . . . . . . . . Misdirections 1 | . . . . . . . . . . . . . . . . . . . . . 1 . Weapon Failures 1 | . . 1 . . . . . . . . . . . . . . . . . . . . Overload Shots . | . . . . . . . . . . . . . . . . . . . . . . . Overflow Damage 1418 | . . . . 235 . . . . 202 146 . . . 150 113 . 171 . 167 . 234 . Projectiles . | . . . . . . . . . . . . . . . . . . . . . . . Explosions . | . . . . . . . . . . . . . . . . . . . . . . . Melee 1418 | . . . . 235 . . . . 202 146 . . . 150 113 . 171 . 167 . 234 . Knockbacks 3 | . . . . 3 . . . . . . . . . . . . . . . . . . Impact 3 | . . . . 3 . . . . . . . . . . . . . . . . . . Kinetic . | . . . . . . . . . . . . . . . . . . . . . . . Secondary . | . . . . . . . . . . . . . . . . . . . . . . . Self-Inflicted Damage 334 | . . . 191 . . . . . . 15 11 . . 116 . . . . 1 . . . Shots 12 | . . . 6 . . . . . . 1 1 . . 4 . . . . . . . . Rammed 1 | . . . . . . . . . . . . . . . . . . . 1 . . . Targets Rammed 2 | . . 1 . . . . . . . . . . . . . . . . 1 . . . Kicked . | . . . . . . . . . . . . . . . . . . . . . . . Crushed 1 | . . 1 . . . . . . . . . . . . . . . . . . . . Highest Temperature 485 | 27 202 262 106 78 8 4 3 4 114 40 7 . . 273 287 192 72 216 109 168 185 485 Average Temperature 50 | 10 54 45 33 23 2 2 2 2 25 13 7 . . 80 112 92 26 65 71 84 101 129 Received Heat Transfer 2730 | . 312 552 1449 12 9 . . 15 33 104 36 18 30 45 . . . . 12 36 67 . Effects 5 | . . . . . . . . . . . . . . . . . . 1 . . . 4 Shutdowns 2 | . . . . . . . . . . . . . . . . . . . . . . 2 Interference 1 | . . . . . . . . . . . . . . . . . . 1 . . . . Matter Decay 1 | . . . . . . . . . . . . . . . . . . . . . . 1 Short Circuit 1 | . . . . . . . . . . . . . . . . . . . . . . 1 Siege Activations . | . . . . . . . . . . . . . . . . . . . . . . . Martial Activations . | . . . . . . . . . . . . . . . . . . . . . . . Shielding Activations . | . . . . . . . . . . . . . . . . . . . . . . . Robots Disrupted 1 | . . . . . . . . . . . . . . 1 . . . . . . . . Combat Hostiles 1 | . . . . . . . . . . . . . . 1 . . . . . . . . Robots Corrupted 5 | . . . . 5 . . . . . . . . . . . . . . . . . . Combat Hostiles . | . . . . . . . . . . . . . . . . . . . . . . . Parts Fried 4 | . . . . 3 . . . . . . . . . 1 . . . . . . . . Impact Corruptions 9 | . . . . 9 . . . . . . . . . . . . . . . . . . Robots Melted . | . . . . . . . . . . . . . . . . . . . . . . . Combat Hostiles . | . . . . . . . . . . . . . . . . . . . . . . . Parts Melted 2 | 2 . . . . . . . . . . . . . . . . . . . . . . Heat Transferred 396 | 296 . . . . . . . . . . . . . 100 . . . . . . . . Parts Sabotaged . | . . . . . . . . . . . . . . . . . . . . . . . Parts Stolen . | . . . . . . . . . . . . . . . . . . . . . . . Parts Stripped . | . . . . . . . . . . . . . . . . . . . . . . . Power Chain Reactions 1 | . . . . . . . . . . . . . . 1 . . . . . . . . Alert | -11 -10 -9 -8 -7 -7 -7 -7 -6 -6 -6 -6 -6 -6 -5 -5 -5 -5 -4 -4 -4 -4 -4 ------- Run | Yrd Mat Mat Mat Fac Low Low Dat Pro Fac Ext Cet Arc Hub Fac Upp Upp Zhi Pro Fac Upp Upp War Maximum Alert Level 3 | . . 2 3 2 . . . . 2 1 . . . 1 . . . . 1 . . . Low Security (%) 67 | 100 100 81 27 . . . . . 77 29 100 100 100 93 . . . . 46 . . . Level 1 21 | . . 13 37 54 . . . . 16 70 . . . 6 . . . . 53 . . . Level 2 6 | . . 5 11 45 . . . . 5 . . . . . . . . . . . . . Level 3 3 | . . . 22 . . . . . . . . . . . . . . . . . . . Level 4 . | . . . . . . . . . . . . . . . . . . . . . . . Level 5 . | . . . . . . . . . . . . . . . . . . . . . . . High Security . | . . . . . . . . . . . . . . . . . . . . . . . Max Security . | . . . . . . . . . . . . . . . . . . . . . . . Peak Influence 774 | 5 146 504 774 559 . . . . 442 347 184 14 55 266 . . . . 266 . . . Initial 345 | . . 8 209 345 . . . . . 205 156 14 . 16 . . . . 23 . . . Average 167 | . 43 111 376 398 . . . . 103 233 112 5 30 113 . . . . 135 . . . Influence Increases 7218 | 20 455 1015 1414 602 60 . . 15 955 576 59 . 65 819 . . 5 105 509 225 110 209 Destroy 0b10 Robot/C 2440 | . 300 680 900 60 . . . . . 120 . . . 200 . . . . . . 80 100 Destroy 0b10 Robot/NC 500 | 20 45 90 85 45 . . . . 40 55 5 . . 80 . . 5 . 25 . 5 . Destroy Leader 592 | . 60 212 228 22 . . . . 10 2 . . . 44 . . . . 4 . 10 . Allied During Kill 30 | . . . . . . . . . . 10 1 . . . . . . . . . . 19 Successful Hack 466 | . 5 . 13 228 . . . . 154 10 . . . 35 . . . . 21 . . . Select Force Hacks 200 | . . . . 30 . . . . 120 . . . 50 . . . . . . . . . Disable Machine 180 | . . . 30 15 . . . . 15 . . . . 105 . . . . 15 . . . Destroy Structure 380 | . . 3 53 37 . . . . 61 79 53 . . 70 . . . . 24 . . . Partial Spotted 270 | . . . 15 15 . . . . 135 45 . . 15 15 . . . . 30 . . . Lose Combat Pursuer 2160 | . 45 30 90 150 60 . . 15 420 255 . . . 270 . . . 105 390 225 15 90 Influence Decreases 7138 | 20 435 537 1151 818 273 104 228 15 534 718 303 35 30 592 238 24 5 68 308 289 174 239 Entered New Map 1942 | . . 12 289 416 203 64 228 . . 216 123 21 . 19 98 6 . . 14 89 34 110 Time Decay 4194 | 20 395 455 672 392 70 40 . 15 484 302 30 14 20 497 140 18 5 68 204 170 100 83 Lost Part 686 | . 40 70 190 10 . . . . 10 60 70 . 10 66 . . . . 90 30 40 . Lost Ally 316 | . . . . . . . . . 40 140 80 . . 10 . . . . . . . 46 Squads Dispatched 57 | . 1 4 9 8 . . . . 18 1 . . 2 7 . . . . 7 . . . Investigation 25 | . 1 1 4 5 . . . . 10 . . . 1 2 . . . . 1 . . . Extermination 12 | . . . . 2 . . . . 5 . . . . 3 . . . . 2 . . . Reinforcement 19 | . . 3 4 1 . . . . 3 1 . . 1 2 . . . . 4 . . . Assault . | . . . . . . . . . . . . . . . . . . . . . . . Garrison 1 | . . . 1 . . . . . . . . . . . . . . . . . . . Intercept . | . . . . . . . . . . . . . . . . . . . . . . . Searches Triggered . | . . . . . . . . . . . . . . . . . . . . . . . Data Miner Redirects 1 | . . . . . . . . . . . . . 1 . . . . . . . . . Construction Impeded 1 | . . . . . . . . . . 1 . . . . . . . . . . . . Haulers Reinforced 3 | . . . . 1 . . . . 1 . . . . 1 . . . . . . . . Active Scanning Responses . | . . . . . . . . . . . . . . . . . . . . . . . Cargo Convoy Interrupts . | . . . . . . . . . . . . . . . . . . . . . . . Stealth | -11 -10 -9 -8 -7 -7 -7 -7 -6 -6 -6 -6 -6 -6 -5 -5 -5 -5 -4 -4 -4 -4 -4 --------- Run | Yrd Mat Mat Mat Fac Low Low Dat Pro Fac Ext Cet Arc Hub Fac Upp Upp Zhi Pro Fac Upp Upp War Distress Signals 13 | . 1 5 4 . . . . . . 1 . . 1 . . . . . 1 . . . Communications Jammed . | . . . . . . . . . . . . . . . . . . . . . . . Distress Signals . | . . . . . . . . . . . . . . . . . . . . . . . Times Spotted 436 | . 25 60 57 16 4 . . 3 32 23 4 4 11 41 . . . 7 43 25 18 63 Peak Tracking Total 16 | . 5 6 7 5 4 . . 1 5 7 4 4 10 7 . . . 4 16 15 10 11 Tactical Retreats 59 | . 2 1 6 4 1 . . 1 11 9 . . . 8 . . . 2 6 5 1 2 Traps | -11 -10 -9 -8 -7 -7 -7 -7 -6 -6 -6 -6 -6 -6 -5 -5 -5 -5 -4 -4 -4 -4 -4 ------- Run | Yrd Mat Mat Mat Fac Low Low Dat Pro Fac Ext Cet Arc Hub Fac Upp Upp Zhi Pro Fac Upp Upp War Traps Triggered 21 | . 3 4 . . . . . . 3 5 . . . 3 . . . . 2 . . 1 Indirectly . | . . . . . . . . . . . . . . . . . . . . . . . Trap Hack Attempts . | . . . . . . . . . . . . . . . . . . . . . . . Triggered . | . . . . . . . . . . . . . . . . . . . . . . . Disarmed . | . . . . . . . . . . . . . . . . . . . . . . . Reprogrammed . | . . . . . . . . . . . . . . . . . . . . . . . Reused . | . . . . . . . . . . . . . . . . . . . . . . . Traps Extracted . | . . . . . . . . . . . . . . . . . . . . . . . Installed 2 | . . . . . . . . . . . . . . . . . . . . 2 . . Triggered . | . . . . . . . . . . . . . . . . . . . . . . . Machines | -11 -10 -9 -8 -7 -7 -7 -7 -6 -6 -6 -6 -6 -6 -5 -5 -5 -5 -4 -4 -4 -4 -4 ---------- Run | Yrd Mat Mat Mat Fac Low Low Dat Pro Fac Ext Cet Arc Hub Fac Upp Upp Zhi Pro Fac Upp Upp War Machines Disabled 15 | . . . 2 1 . . . . 1 2 . . . 7 1 . . . 1 . . . Max in Single Turn 3 | . . . 1 1 . . . . 1 2 . . . 3 1 . . . 1 . . . Garrison Access 8 | . . . . 1 . . . . 3 . . . . 3 . . . . 1 . . . Network Hub 1 | . . . . . . . . . . . . . 1 . . . . . . . . . Machines Repaired . | . . . . . . . . . . . . . . . . . . . . . . . Machines Dismantled . | . . . . . . . . . . . . . . . . . . . . . . . Machines Sabotaged 1 | . . . . . . . . . . . . . 1 . . . . . . . . . Overloaded Fab Kills . | . . . . . . . . . . . . . . . . . . . . . . . Hacking | -11 -10 -9 -8 -7 -7 -7 -7 -6 -6 -6 -6 -6 -6 -5 -5 -5 -5 -4 -4 -4 -4 -4 --------- Run | Yrd Mat Mat Mat Fac Low Low Dat Pro Fac Ext Cet Arc Hub Fac Upp Upp Zhi Pro Fac Upp Upp War Machines Accessed 107 | . 2 2 9 19 . . 4 . 35 4 2 . 1 14 3 . 5 . 5 . . 2 Terminals 57 | . 1 1 8 12 . . . . 18 4 2 . 1 7 1 . . . 2 . . . Fabricators 11 | . . . . 1 . . . . 6 . . . . 2 . . . . 2 . . . Repair Stations 6 | . . . . 3 . . . . 2 . . . . 1 . . . . . . . . Recycling Units 7 | . 1 . . 1 . . . . 4 . . . . 1 . . . . . . . . Scanalyzers 3 | . . 1 1 . . . . . 1 . . . . . . . . . . . . . Garrison Access 10 | . . . . 2 . . . . 4 . . . . 3 . . . . 1 . . . Total Hacks 356 | . 6 3 32 49 . . 22 . 121 5 3 . 1 70 3 . 18 . 17 . . 6 Successful 239 | . 4 3 21 31 . . 22 . 78 4 . . 1 39 3 . 18 . 9 . . 6 Failed 116 | . 2 . 11 18 . . . . 42 1 3 . . 31 . . . . 8 . . . Catastrophic 9 | . . . . 4 . . . . 3 . 1 . . 1 . . . . . . . . Database Lockouts 1 | . . . . . . . . . 1 . . . . . . . . . . . . . Manual 180 | . 3 1 27 28 . . . . 68 3 . . 1 44 . . . . 4 . . 1 Terminals 202 | . 4 1 27 28 . . . . 69 5 3 . 1 54 1 . . . 9 . . . Fabricators 31 | . . . . 4 . . . . 16 . . . . 7 . . . . 4 . . . Repair Stations 17 | . . . . 10 . . . . 4 . . . . 3 . . . . . . . . Recycling Units 10 | . 2 . . 1 . . . . 6 . . . . 1 . . . . . . . . Scanalyzers 26 | . . 2 5 . . . . . 19 . . . . . . . . . . . . . Garrison Access 22 | . . . . 6 . . . . 7 . . . . 5 . . . . 4 . . . Terminal Hacks 77 | . 1 . 1 3 . . 22 . 9 2 . . . 9 3 . 18 . 3 . . 6 Record 15 | . . . . . . . 5 . . . . . . . 2 . 6 . 2 . . . Part Schematic 17 | . . . . 1 . . 10 . 2 . . . . . . . 4 . . . . . Robot Schematic 4 | . . . . . . . 4 . . . . . . . . . . . . . . . Robot Analysis 4 | . . . . . . . . . . . . . . . . . 4 . . . . . Prototype ID Bank 13 | . 1 . . . . . 3 . . . . . . . . . 4 . . . . 5 Open Door 2 | . . . . . . . . . . . . . . . 1 . . . . . . 1 Level Access Points 1 | . . . . . . . . . . . . . . 1 . . . . . . . . Terminal Index 4 | . . . 1 1 . . . . 1 . . . . 1 . . . . . . . . Fabricator Index 1 | . . . . . . . . . . . . . . 1 . . . . . . . . Garrison Index 1 | . . . . . . . . . 1 . . . . . . . . . . . . . Alert Level 1 | . . . . . . . . . . 1 . . . . . . . . . . . . Locate Traps 10 | . . . . . . . . . 3 1 . . . 5 . . . . 1 . . . Hauler Manifests 3 | . . . . 1 . . . . 1 . . . . 1 . . . . . . . . Zone Layout 1 | . . . . . . . . . 1 . . . . . . . . . . . . . Fabricator Hacks 21 | . . . . 3 . . . . 10 . . . . 5 . . . . 3 . . . Network Status 4 | . . . . 1 . . . . 1 . . . . 1 . . . . 1 . . . Load Schematic 9 | . . . . 1 . . . . 5 . . . . 2 . . . . 1 . . . Build 8 | . . . . 1 . . . . 4 . . . . 2 . . . . 1 . . . Repair Station Hacks 14 | . . . . 8 . . . . 4 . . . . 2 . . . . . . . . Scan Component 7 | . . . . 4 . . . . 2 . . . . 1 . . . . . . . . Repair 7 | . . . . 4 . . . . 2 . . . . 1 . . . . . . . . Recycling Unit Hacks 2 | . 1 . . . . . . . . . . . . 1 . . . . . . . . Retrieve Components 2 | . 1 . . . . . . . . . . . . 1 . . . . . . . . Scanalyzer 23 | . . 2 5 . . . . . 16 . . . . . . . . . . . . . Insert Component 10 | . . 1 1 . . . . . 8 . . . . . . . . . . . . . Analyze 13 | . . 1 4 . . . . . 8 . . . . . . . . . . . . . Garrison Access Hacks 8 | . . . . 1 . . . . 3 . . . . 3 . . . . 1 . . . Seal Access 8 | . . . . 1 . . . . 3 . . . . 3 . . . . 1 . . . Unauthorized Hacks 93 | . 2 1 15 15 . . . . 36 2 . . 1 19 . . . . 2 . . . Terminals 88 | . 2 1 15 14 . . . . 32 2 . . 1 19 . . . . 2 . . . Track 14 | . 1 . . . . . . . 6 2 . . . 5 . . . . . . . . Assimilate 6 | . . . . . . . . . 5 . . . . 1 . . . . . . . . Botnet 39 | . 1 1 7 7 . . . . 15 . . . . 7 . . . . 1 . . . Operators 4 | . . . 1 1 . . . . 1 . . . . 1 . . . . . . . . Skim 24 | . . . 7 6 . . . . 5 . . . . 5 . . . . 1 . . . Sabotage 1 | . . . . . . . . . . . . . 1 . . . . . . . . . Fabricators . | . . . . . . . . . . . . . . . . . . . . . . . Repair Stations . | . . . . . . . . . . . . . . . . . . . . . . . Recycling Units 5 | . . . . 1 . . . . 4 . . . . . . . . . . . . . Tunnel 5 | . . . . 1 . . . . 4 . . . . . . . . . . . . . Scanalyzers . | . . . . . . . . . . . . . . . . . . . . . . . Garrison Access . | . . . . . . . . . . . . . . . . . . . . . . . Data Cores Recovered 3 | . 1 . 1 . . . . . . . . . . . . . . . 1 . . . Used 1 | . . . . . . . . . . . . . . . . . . . 1 . . . Hacking Detections 72 | . 1 1 8 18 . . . . 29 4 2 . . 6 . . . . 3 . . . Full Trace Events 17 | . . . 4 4 . . . . 6 . . . . 2 . . . . 1 . . . Feedback Events . | . . . . . . . . . . . . . . . . . . . . . . . Feedback Blocked . | . . . . . . . . . . . . . . . . . . . . . . . Robot Schematics Acquired 4 | . . . . . . . 4 . . . . . . . . . . . . . . . Robots Built . | . . . . . . . . . . . . . . . . . . . . . . . Authchips . | . . . . . . . . . . . . . . . . . . . . . . . Time . | . . . . . . . . . . . . . . . . . . . . . . . Total Robot Build Rating . | . . . . . . . . . . . . . . . . . . . . . . . Part Schematics Acquired 27 | . . 1 1 1 . . 10 . 10 . . . . . . . 4 . . . . . Parts Built 9 | . . . . 2 . . . . 4 . . . . 2 . . . . 1 . . . Authchips . | . . . . . . . . . . . . . . . . . . . . . . . Time 574 | . . . . 31 . . . . 340 . . . . 69 . . . . 134 . . . Total Part Build Rating 30 | . . . . 4 . . . . 17 . . . . 5 . . . . 4 . . . Parts Repaired 7 | . . . . 4 . . . . 2 . . . . 1 . . . . . . . . Time 147 | . . . . 84 . . . . 38 . . . . 25 . . . . . . . . Parts Recycled . | . . . . . . . . . . . . . . . . . . . . . . . Recycled Matter . | . . . . . . . . . . . . . . . . . . . . . . . Retrieved Matter . | . . . . . . . . . . . . . . . . . . . . . . . Retrieved Components 11 | . 9 . . . . . . . . . . . . 2 . . . . . . . . Parts Scanalyzed 10 | . . 1 1 . . . . . 8 . . . . . . . . . . . . . Part Schematics Acquired 10 | . . 1 1 . . . . . 8 . . . . . . . . . . . . . Parts Damaged . | . . . . . . . . . . . . . . . . . . . . . . . Bothacking | -11 -10 -9 -8 -7 -7 -7 -7 -6 -6 -6 -6 -6 -6 -5 -5 -5 -5 -4 -4 -4 -4 -4 ------------ Run | Yrd Mat Mat Mat Fac Low Low Dat Pro Fac Ext Cet Arc Hub Fac Upp Upp Zhi Pro Fac Upp Upp War Used RIF Installer . | . . . . . . . . . . . . . . . . . . . . . . . Robots Hacked . | . . . . . . . . . . . . . . . . . . . . . . . Non-combat . | . . . . . . . . . . . . . . . . . . . . . . . Combat . | . . . . . . . . . . . . . . . . . . . . . . . Robot Hacks Applied . | . . . . . . . . . . . . . . . . . . . . . . . Relay Couplers Released 4 | . . . . . . . . . . . . . . 4 . . . . . . . . Programmers 4 | . . . . . . . . . . . . . . 4 . . . . . . . . Fabnet Peak Effective % . | . . . . . . . . . . . . . . . . . . . . . . . Robots Rewired 12 | . . . . . . . . . . 7 . . . . . . . . . . . 5 Allies Hacked 1 | . . . . . . . . . 1 . . . . . . . . . . . . . Hacks Repelled . | . . . . . . . . . . . . . . . . . . . . . . . Allies | -11 -10 -9 -8 -7 -7 -7 -7 -6 -6 -6 -6 -6 -6 -5 -5 -5 -5 -4 -4 -4 -4 -4 -------- Run | Yrd Mat Mat Mat Fac Low Low Dat Pro Fac Ext Cet Arc Hub Fac Upp Upp Zhi Pro Fac Upp Upp War Total Allies 22 | . . . . . . . . . 5 11 . . . 1 . . . . . . . 5 Largest Group 5 | . . . . . . . . . 2 5 4 . . 1 . . . . . . . 5 Highest-Rated Group 250 | . . . . . . . . . 36 143 90 . . 26 . . . . . . . 250 Highest-Rated Ally 56 | . . . . . . . . . 26 31 25 . . 26 . . . . . . . 56 Total Orders 16 | . . . . . . . . . 3 3 2 . . . . . . . . . . 8 STAY 11 | . . . . . . . . . 2 2 1 . . . . . . . . . . 6 ROAM 1 | . . . . . . . . . . . 1 . . . . . . . . . . . FOLLOW 4 | . . . . . . . . . 1 1 . . . . . . . . . . . 2 Ally Attacks 54 | . . . . . . . . . . 26 . . . . . . . . . . . 28 Total Damage 1299 | . . . . . . . . . . 438 . . . . . . . . . . . 861 Kills 7 | . . . . . . . . . . 2 . . . . . . . . . . . 5 Allies Corrupted . | . . . . . . . . . . . . . . . . . . . . . . . Allies Melted . | . . . . . . . . . . . . . . . . . . . . . . . Intel | -11 -10 -9 -8 -7 -7 -7 -7 -6 -6 -6 -6 -6 -6 -5 -5 -5 -5 -4 -4 -4 -4 -4 ------- Run | Yrd Mat Mat Mat Fac Low Low Dat Pro Fac Ext Cet Arc Hub Fac Upp Upp Zhi Pro Fac Upp Upp War Active Infowar (turns) 15369 | 145 2417 2890 1388 919 144 88 19 113 1662 660 79 60 43 1527 296 95 77 530 660 347 202 1008 Optics 4915 | . . . . . . . . . . . 70 60 43 1527 296 95 77 530 660 347 202 1008 Sensors 6794 | . . . . 861 144 88 19 113 1662 660 79 60 37 1453 296 95 72 530 625 . . . Structural 4494 | . . . . 883 144 88 19 113 1661 616 49 . . 298 . . . . 623 . . . Seismic 6876 | 145 2417 2890 1388 36 . . . . . . . . . . . . . . . . . . Machine Analysis 3508 | . . . 475 . . . . . . . . . . 1526 296 95 77 530 264 . . 245 Robot Analysis Total 4 | . . . . . . . . . . . . . . . . . 4 . . . . . Derelict Logs Recovered 7 | . . . . . 1 1 . . . . . . . . 1 1 . 1 . 2 . . Drone Launches . | . . . . . . . . . . . . . . . . . . . . . . . Drone Recoveries . | . . . . . . . . . . . . . . . . . . . . . . . Exploration | -11 -10 -9 -8 -7 -7 -7 -7 -6 -6 -6 -6 -6 -6 -5 -5 -5 -5 -4 -4 -4 -4 -4 ------------- Run | Yrd Mat Mat Mat Fac Low Low Dat Pro Fac Ext Cet Arc Hub Fac Upp Upp Zhi Pro Fac Upp Upp War Turns Passed 18141 | 239 2417 4330 2610 922 144 88 19 113 1662 673 79 60 43 1527 296 95 77 530 660 347 202 1008 Spaces Moved 18953 | 122 935 1466 865 2063 586 365 80 331 3562 892 112 40 75 2343 570 326 179 639 1125 651 300 1326 Core 77 | 2 . . . . . . . . . . . . 3 34 . . . . 34 . 4 . Treads 3002 | 120 935 1466 481 . . . . . . . . . . . . . . . . . . . Legs 182 | . . . 170 12 . . . . . . . . . . . . . . . . . . Wheels 214 | . . . 214 . . . . . . . . . . . . . . . . . . . Hover 970 | . . . . . . . . . . . . 5 63 902 . . . . . . . . Flight 14508 | . . . . 2051 586 365 80 331 3562 892 112 35 9 1407 570 326 179 639 1091 651 296 1326 Fastest Speed 15 | 50 160 160 116 20 23 23 23 23 20 20 20 32 35 17 20 20 20 20 20 30 35 15 Average Speed 61 | 158 224 233 203 24 23 23 23 23 22 24 41 34 50 33 20 20 20 20 22 38 47 29 Slowest Speed 320 | 160 320 240 320 261 23 23 23 23 26 97 94 50 100 250 20 20 20 20 107 40 115 171 Overloaded Moves 15 | . . . . . . . . . . . 15 . . . . . . . . . . . Propulsion Burnouts . | . . . . . . . . . . . . . . . . . . . . . . . Robots Hopped 51 | . . . . 10 . . . . 11 6 2 1 3 3 . . . . 8 . 5 2 Potential Cave-ins 7 | . . . . . . . . . . . 7 . . . . . . . . . . . Cave-ins Triggered . | . . . . . . . . . . . . . . . . . . . . . . . Teleports 1 | . . . . . . . . . . . . . . . . . . . . . 1 . Exploration Rate (%) 63 | 7 98 97 70 53 85 58 68 49 77 76 65 75 12 58 69 53 63 82 35 72 56 92 Regions Visited 22 Branch Regions 15 Pre-discovered Areas 14 | . . . 1 3 . . . . 5 . . . . 2 . . 3 . . . . . Known Exits Taken 20 | . . 1 1 1 1 1 1 1 1 1 1 1 1 1 1 1 1 1 1 1 1 . Unknown Exits Taken 2 | 1 1 . . . . . . . . . . . . . . . . . . . . . Scrap Searched 24 | . . . . . 7 7 . 1 . . . . . . 2 1 . 4 . 1 1 . Spaces Dug 162 | . . . 17 25 1 . . . 61 . . . . 35 6 . . 3 12 2 . . Terrain Destroyed 510 | . . . 57 36 1 . . 10 61 167 117 . . 35 6 . . 3 12 2 . 3 Melee 139 | . . . 4 15 1 . . . 61 . . . . 35 6 . . 3 12 2 . . Projectile 3 | . . . . . . . . . . . . . . . . . . . . . . 3 AOE 368 | . . . 53 21 . . . 10 . 167 117 . . . . . . . . . . . Terrain Rammed . | . . . . . . . . . . . . . . . . . . . . . . . Walls Destroyed . | . . . . . . . . . . . . . . . . . . . . . . . Machines Disabled . | . . . . . . . . . . . . . . . . . . . . . . . Actions | -11 -10 -9 -8 -7 -7 -7 -7 -6 -6 -6 -6 -6 -6 -5 -5 -5 -5 -4 -4 -4 -4 -4 --------- Run | Yrd Mat Mat Mat Fac Low Low Dat Pro Fac Ext Cet Arc Hub Fac Upp Upp Zhi Pro Fac Upp Upp War Total 24187 | 143 1126 2070 1411 2415 592 368 79 365 4309 1305 133 84 77 2913 723 354 212 1035 1487 740 329 1917 Wait 3863 | . 99 342 303 266 1 2 . 32 610 254 10 46 4 389 133 29 16 394 330 75 9 519 Move 18837 | 121 934 1465 864 2043 585 364 79 330 3540 879 107 37 69 2337 569 325 178 638 1110 650 290 1323 Hop 43 | . . . . 9 . . . . 10 6 2 1 2 2 . . . . 6 . 4 1 Pick Up 112 | 4 19 26 18 5 2 1 . . 10 1 . . 1 14 2 . 1 . 1 2 . 5 Fast Attach 121 | 7 4 15 14 9 . . . . 6 2 . . . 27 . . 6 . 3 2 5 21 Attach 76 | . 4 5 15 11 . 1 . 1 5 4 4 . . 11 . . . . 3 3 3 6 Detach 19 | . . . 1 1 . . . . 2 2 1 . 1 1 . . . . 1 2 1 6 Swap 63 | . 1 19 17 4 . . . . 5 1 . . . 12 . . 1 . 1 . . 2 Drop 147 | . 2 31 18 27 2 . . . 12 . 1 . . 20 1 . 6 . 7 1 1 18 Fire 444 | 11 63 166 156 3 . . . 2 . 14 8 . . 3 . . . . . . 2 16 Melee 296 | . . . 5 37 2 . . . 79 10 . . . 97 18 . 4 3 24 3 14 . Ram 1 | . . . . . . . . . . . . . . . . . . . 1 . . . Kick . | . . . . . . . . . . . . . . . . . . . . . . . Crush 1 | . . 1 . . . . . . . . . . . . . . . . . . . . Escape Stasis 107 | . . . . . . . . . 30 77 . . . . . . . . . . . . Rewire 55 | . . . . . . . . . . 55 . . . . . . . . . . . . Trap 2 | . . . . . . . . . . . . . . . . . . . . 2 . . Miscellaneous . | . . . . . . . . . . . . . . . . . . . . . . . Route ------- -11/Scrapyard -10/Materials (discovered 5 exits: *Mat x3 / [*Min x2]) -9/Materials (discovered 5 exits: *Mat x3 / [*Min] / [*Sto]) -8/Materials (discovered 3 exits: *Fac x3) -7/Factory (discovered 5 exits: *Fac x3 / *Low x2) -7/Lower Caves -7/Lower Caves (discovered 2 exits: *Fac / *Dat) -7/Data Miner -6/Proximity Caves -6/Factory (discovered 7 exits: *Fac x3 / *Low x2 / *Ext x2) -6/Extension (discovered 2 exits: *Fac / *Cet) -6/Cetus (discovered 2 exits: Fac / *Arc) -6/Archives (discovered 2 exits: *Hub x2) -6/Hub_04(d) (discovered 2 exits: *Fac x2) -5/Factory (discovered 6 exits: *Fac x4 / *Upp x2) -5/Upper Caves -5/Upper Caves (discovered 2 exits: *Fac / *Zhi) -5/Zhirov -4/Proximity Caves -4/Factory (discovered 5 exits: *Res x2 / *Upp x2 / Arm) -4/Upper Caves -4/Upper Caves (discovered 2 exits: *Res / *War) -4/Warlord History --------- Turn | Location | Event 6 | -11/Scrapyard | Discovered new exit (range 16) 240 | -11/Scrapyard | Entered Materials 272 | -10/Materials | Discovered new exit (range 15) 312 | -10/Materials | Build established: Mutant 452 | -10/Materials | Discovered new exit (range 6) 740 | -10/Materials | Discovered new exit (range 8) 1507 | -10/Materials | Discovered new exit (range 8) 2179 | -10/Materials | Discovered new exit (range 16) 2657 | -10/Materials | Entered another Materials area 2657 | -9/Materials | Evolved 2 slots: Propulsion x2 3442 | -9/Materials | Build established: Scavenger-Mutant 3701 | -9/Materials | Discovered new exit (range 14) 4818 | -9/Materials | Build established: Mutant 4980 | -9/Materials | Discovered new exit (range 16) 5068 | -9/Materials | Discovered new exit (range 4) 5221 | -9/Materials | Build established: Scavenger-Mutant 5490 | -9/Materials | Core integrity fell below 50% 6295 | -9/Materials | Discovered new exit (range 14) 6750 | -9/Materials | Discovered new exit (range 6) 6765 | -9/Materials | Core integrity fell below 20% 6987 | -9/Materials | Identified exit to Materials 6987 | -9/Materials | Entered another Materials area 6987 | -8/Materials | Evolved 2 slots: Utility x2 7588 | -8/Materials | Discovered new exit (range 16) 8085 | -8/Materials | Lost 3 parts (1n2u) 8343 | -8/Materials | Discovered new exit (range 5) 8367 | -8/Materials | Identified exit to Factory 8989 | -8/Materials | Discovered exit to Factory (range 11) 8998 | -8/Materials | Core integrity fell below 50% 9026 | -8/Materials | Destroyed 7 combat bots 9030 | -8/Materials | Lost 6 parts (1p3n1u1w) 9360 | -8/Materials | Garrison activated, responded to threat 9403 | -8/Materials | Learned Storage emergency access door positions 9429 | -8/Materials | Learned Factory stockpile data 9446 | -8/Materials | Learned 4 Factory zone layouts 9455 | -8/Materials | Learned location of 3 exits from Factory 9464 | -8/Materials | Learned Factory trap positions 9481 | -8/Materials | Learned location of 1 exit from Storage 9597 | -8/Materials | Entered Factory 9597 | -7/Factory | Evolved 2 slots: Propulsion x2 9598 | -7/Factory | Identified exit to Lower Caves 9599 | -7/Factory | Identified exit to Factory 9601 | -7/Factory | Loaded intel: 123 trap records 9719 | -7/Factory | Repaired Rocket Launcher 9967 | -7/Factory | Discovered exit to Factory (range 15) 10043 | -7/Factory | Build established: Scout 10090 | -7/Factory | Repaired VTOL Module 10125 | -7/Factory | Repaired VTOL Module 10311 | -7/Factory | Fabricated VTOL Module (x2) 10357 | -7/Factory | Learned location of 1 exit from Extension 10408 | -7/Factory | Learned location of 1 exit from Hub_04(d) 10419 | -7/Factory | Learned location of Proximity Caves (-4) 10420 | -7/Factory | Learned location of 1 exit from Lower Caves 10421 | -7/Factory | Learned Hub_04(d) stockpile data 10424 | -7/Factory | Learned location of Zion (-6) 10435 | -7/Factory | Learned Factory stockpile data 10457 | -7/Factory | Learned 2 Proximity Caves zone layouts 10464 | -7/Factory | Repaired VTOL Module 10491 | -7/Factory | Learned location of 3 exits from Factory 10519 | -7/Factory | Entered Lower Caves 10520 | -7/Lower Caves | Identified exit to Lower Caves 10525 | -7/Lower Caves | Learned Factory stockpile data 10663 | -7/Lower Caves | Entered another Lower Caves area 10681 | -7/Lower Caves | Encountered a Warlord checkpoint 10750 | -7/Lower Caves | Discovered new exit (range 6) 10751 | -7/Lower Caves | Identified exit to Data Miner 10751 | -7/Lower Caves | Entered Data Miner 10751 | -7/Data Miner | Discovered new exit (range 7) 10756 | -7/Data Miner | Met Data Miner 10760 | -7/Data Miner | Acquired the access code to Warlord's prototype stash 10765 | -7/Data Miner | Received God Mode back door access code from Data Miner 10769 | -7/Data Miner | Identified exit to Proximity Caves 10770 | -7/Data Miner | Entered Proximity Caves 10787 | -6/Proximity Caves | Spotted B-75 Beast 10879 | -6/Proximity Caves | Discovered exit to Factory (range 16) 10883 | -6/Proximity Caves | Entered Factory 10883 | -6/Factory | Evolved 2 slots: Utility x2 10884 | -6/Factory | Identified exit to Lower Caves 10885 | -6/Factory | Identified exit to Factory 10885 | -6/Factory | Identified exit to Extension 11188 | -6/Factory | Build established: Hacker-Scout 11323 | -6/Factory | Learned Hub_04(d) trap positions 11360 | -6/Factory | Learned location of 1 exit from Cetus 11389 | -6/Factory | Learned 2 Upper Caves zone layouts 11409 | -6/Factory | Learned location of 2 exits from Lower Caves 11418 | -6/Factory | Learned 4 Hub_04(d) zone layouts 11432 | -6/Factory | Fabricated Lrn. Missile Launcher? 11457 | -6/Factory | Fabricated Cld. VTOL Module? 11469 | -6/Factory | Learned 2 Extension zone layouts 11666 | -6/Factory | Discovered exit to Factory (range 15) 11731 | -6/Factory | Discovered exit to Extension (range 15) 11827 | -6/Factory | Fabricated Cld. VTOL Module? 11866 | -6/Factory | Repaired Chainsword 11883 | -6/Factory | Central database locked down 11914 | -6/Factory | Repaired VTOL Module 11989 | -6/Factory | Spotted B-75 Beast 11996 | -6/Factory | Fabricated Cld. VTOL Module? 12278 | -6/Factory | Discovered exit to Factory (range 3) 12545 | -6/Factory | Entered Extension 12546 | -6/Extension | Identified exit to Cetus 12600 | -6/Extension | Rescued a captive Derelict 12601 | -6/Extension | Rescued a captive Derelict 12754 | -6/Extension | Lost 5 allies 12929 | -6/Extension | Spotted B-75 Beast 12949 | -6/Extension | Spotted B-75 Beast 12955 | -6/Extension | Rescued a captive Derelict 12984 | -6/Extension | Lost 5 parts (2p2n1u) 13045 | -6/Extension | Disrupted transfer network 13124 | -6/Extension | Rescued a captive Derelict 13134 | -6/Extension | Discovered exit to Factory (range 10) 13218 | -6/Extension | Entered Cetus 13218 | -6/Cetus | Accompanied by 4 allies 13236 | -6/Cetus | Spotted Cetus Guard 13237 | -6/Cetus | Spotted Cetus Guard 13238 | -6/Cetus | Spotted Cetus Guard 13240 | -6/Cetus | Spotted Cetus Guard 13278 | -6/Cetus | Core integrity fell below 50% 13290 | -6/Cetus | Discovered new exit (range 22) 13295 | -6/Cetus | Lost 4 allies 13297 | -6/Cetus | Identified exit to Archives 13297 | -6/Cetus | Entered Archives 13308 | -6/Archives | Lost 7 parts (1p1n2u3w) 13348 | -6/Archives | Discovered new exit (range 22) 13349 | -6/Archives | Discovered new exit (range 22) 13356 | -6/Archives | Identified exit to Hub_04(d) 13357 | -6/Archives | Entered Hub_04(d) 13357 | -6/Hub_04(d) | Discovered exit to Factory (range 11) 13360 | -6/Hub_04(d) | Loaded intel: 19 trap records 13379 | -6/Hub_04(d) | Network Hub disabled 13382 | -6/Hub_04(d) | Spotted Lightning 13390 | -6/Hub_04(d) | Spotted Lightning 13396 | -6/Hub_04(d) | Spotted Lightning 13397 | -6/Hub_04(d) | Incoming investigation squad redirected 13400 | -6/Hub_04(d) | Entered Factory 13400 | -5/Factory | Evolved 2 slots: Propulsion x1, Utility x1 13401 | -5/Factory | Identified exit to Upper Caves 13694 | -5/Factory | Discovered new exit (range 8) 13903 | -5/Factory | Build established: Hacker-Mutant 13972 | -5/Factory | Identified exit to Factory 14251 | -5/Factory | Repaired Adv. Sensor Array 14356 | -5/Factory | Fabricated Sml. Storage Unit (x1) 14387 | -5/Factory | Discovered exit to Upper Caves (range 15) 14434 | -5/Factory | Fabricated Cld. VTOL Module (x1) 14455 | -5/Factory | Learned 4 Research zone layouts 14576 | -5/Factory | Build established: Scavenger-Scout 14579 | -5/Factory | Learned Extension trap positions 14629 | -5/Factory | Learned location of Testing (-3) 14741 | -5/Factory | Learned location of Upper Caves (-4) 14827 | -5/Factory | Spotted B-75 Beast 14927 | -5/Factory | Entered Upper Caves 14984 | -5/Upper Caves | Found Alien Artifact 15031 | -5/Upper Caves | Spotted B-75 Beast 15092 | -5/Upper Caves | Learned 8 Factory zone layouts 15092 | -5/Upper Caves | Discovered new exit (range 9) 15094 | -5/Upper Caves | Identified exit to Upper Caves 15223 | -5/Upper Caves | Entered another Upper Caves area 15229 | -5/Upper Caves | Discovered exit to Factory (range 10) 15239 | -5/Upper Caves | Encountered a Warlord checkpoint 15293 | -5/Upper Caves | Discovered new exit (range 5) 15294 | -5/Upper Caves | Identified exit to Zhirov 15318 | -5/Upper Caves | Entered Zhirov 15318 | -5/Zhirov | Discovered new exit (range 3) 15322 | -5/Zhirov | Met Zhirov 15328 | -5/Zhirov | Found Alien Artifact 15328 | -5/Zhirov | Identified Integrated Reactor 15328 | -5/Zhirov | Installed Integrated Reactor, increased core energy generation (+10) 15381 | -5/Zhirov | Found Alien Artifact 15390 | -5/Zhirov | Zhirov requested help retrieving the SGEMP Prototype 15395 | -5/Zhirov | Identified exit to Proximity Caves 15395 | -5/Zhirov | Entered Proximity Caves 15635 | -4/Proximity Caves | Received a Behemoth hack from an annoying Tinkerer 15885 | -4/Proximity Caves | Learned Research security intel 15923 | -4/Proximity Caves | Discovered exit to Factory (range 5) 15925 | -4/Proximity Caves | Entered Factory 15925 | -4/Factory | Evolved 2 slots: Utility x2 15926 | -4/Factory | Identified exit to Armory 15927 | -4/Factory | Identified exit to Research 16208 | -4/Factory | Discovered new exit (range 6) 16209 | -4/Factory | Identified exit to Upper Caves 16442 | -4/Factory | Discovered exit to Research (range 12) 16496 | -4/Factory | Fabricated Cld. VTOL Module? 16564 | -4/Factory | Discovered exit to Upper Caves (range 4) 16581 | -4/Factory | Lost 7 parts (3n4u) 16585 | -4/Factory | Entered Upper Caves 16829 | -4/Upper Caves | Build established: Mutant 16895 | -4/Upper Caves | Core integrity fell below 50% 16911 | -4/Upper Caves | Attracted the attention of an 0b10 outpost 16914 | -4/Upper Caves | Learned 8 Research zone layouts 16928 | -4/Upper Caves | Discovered new exit (range 12) 16932 | -4/Upper Caves | Identified exit to Upper Caves 16932 | -4/Upper Caves | Entered another Upper Caves area 16932 | -4/Upper Caves | Discovered exit to Research (range 5) 16951 | -4/Upper Caves | Lost 3 parts (1p2n) 17025 | -4/Upper Caves | Spotted B-86 Titan 17060 | -4/Upper Caves | Core integrity fell below 20% 17073 | -4/Upper Caves | System corruption reached 10% 17103 | -4/Upper Caves | Lost 4 parts (1p2n1w) 17122 | -4/Upper Caves | Identified Transdimensional Reconstructor 17122 | -4/Upper Caves | Warped through subspace 17127 | -4/Upper Caves | Discovered new exit (range 21) 17133 | -4/Upper Caves | Identified exit to Warlord 17134 | -4/Upper Caves | Attracted the attention of an 0b10 outpost 17134 | -4/Upper Caves | Entered Warlord 17146 | -4/Warlord | System corruption cleaned by Quarantine Array 17258 | -4/Warlord | Opened Warlord's prototype stash 17264 | -4/Warlord | Found Prototype Processor 17264 | -4/Warlord | Identified Exp. Targeting Computer 17267 | -4/Warlord | Found Prototype Processor 17267 | -4/Warlord | Identified Spectral Analyzer 17308 | -4/Warlord | Met Warlord 17333 | -4/Warlord | Warlord's base attacked by MAIN.C 17348 | -4/Warlord | Found Prototype Energy Cannon 17348 | -4/Warlord | Identified Vortex Driver 17351 | -4/Warlord | Found Vortex Driver 17352 | -4/Warlord | Found Prototype Energy Gun 17352 | -4/Warlord | Identified Vortex Rifle 17355 | -4/Warlord | Found Vortex Rifle 17399 | -4/Warlord | Spotted B-90 Cyclops 17415 | -4/Warlord | Identified Dimensional Node Initializer 17415 | -4/Warlord | Initialized slip node 17683 | -4/Warlord | Warlord forces counterattacked 17717 | -4/Warlord | Build established: Commander-Mutant 17781 | -4/Warlord | Spotted Executioner 17810 | -4/Warlord | Spotted Executioner 17812 | -4/Warlord | Spotted Striker 17852 | -4/Warlord | Spotted Executioner 17852 | -4/Warlord | Spotted Striker 17891 | -4/Warlord | Lost 27 allies 17921 | -4/Warlord | Found Prototype Processor 17921 | -4/Warlord | Identified Exp. Core Analyzer 18008 | -4/Warlord | Warlord base infiltrated, sounded retreat 18025 | -4/Warlord | Spotted Executioner 18109 | -4/Warlord | Spotted Striker 18119 | -4/Warlord | Spotted Executioner 18138 | -4/Warlord | Spotted Striker 18142 | -4/Warlord | Destroyed by Striker with Compact Linear Accelerator Last Messages --------------- 18129_ Executioner destroyed. 18130_ HV Slug penetrates G-67 Veteran. 18130_ Slug penetrates Blast Doors. 18131_ The unstable cave ceiling collapses. 18131_ Slug penetrates Executioner. 18131_ G-67 Veteran destroyed. 18132_ The unstable cave ceiling collapses. 18133_ ANNOUNCEMENT: Detected 1 Melee squad, 1 Grunt squad, 1 Demolisher squad, 1 Swarmer squad, with prototype support. 18133_ Slug penetrates Q1-6CX(c). 18133_ Slug penetrates LV-01A. 18134_ The unstable cave ceiling collapses. 18136_ Slug penetrates LV-01A. 18137_ The unstable cave ceiling collapses. 18137_ Executioner destroyed. 18138_ The unstable cave ceiling collapses. 18138_ Slug penetrates Striker. 18139_ The unstable cave ceiling collapses. 18140_ G-73 Enforcer destroyed. 18141_ The unstable cave ceiling collapses. Map ----- +----------------------------------------------------+ | " !%! ## #??????????## ##?????? | | " != # #?????????## #?????? | | %# #?????????# #?????? | | ! + #?????????# ##?????? | | !%[# #?????????# #?????? | | #+###############%# """"" #?????????# ##????? | | ###########=# """"" #?????????## #????? | | """ ## ## # """"" #??????????### ##???? | | """ ## ## ##########????????????## #???? | | """ ## ## #??????????????????????## #???? | | """ ## ## #?????????????????????### ##### | | """ ## ## #?????????????????????# " * | | ## ## #???????##????????????#### ##"% | | ## ## ##?????#""#??????????????## | | ## # #?????#""#???????????????### | | ## # #?????#""#????###?##???????# | | "####### + #?????#""#???# # ###### ?# | | # # ##????#""### ??" | | ###+ # ######""; # # #?" | | ### ; "" # # " | | *!! # % [["" # # | | ###^^% # =%"" ## | | ?#" ! b % = c=m = ## | | ?# ] Y MY Y M cg=m K =%! | | ?## % !%=%ccg KWK d d * =% | | ??# =! Mgmg l@= = [ | | ??#### # ## = gm l =" ] % | | ?????### # #% *= c "" ] *[ ! | | ???????#### "" = ## = | | ##????????#### !]= # ####""# ### = # ; | | #?????????# ###??#""# # # #### ## | | #???##### # ##????#""#?#?#######???###" # | | #???# # #????#""#????????????????# ## | | =#???# #????#""#???????????????? ?? | | =#???# #????#""#???????????????# ?? | | ##???# #?????###???????????????# #?? | | ????? ! * #???????????????????????# ??? | | ?????# #???????????????????????# ??? | | ????? #??????????????????????? ??? | | ???? # ##??????????????????????? ??? | | ?????#" #######?#??????????????? #???? | | ????? # # # ## #??????????????? #????? | | #######?# ## """ #?????????????? ?????? | | """""#???????### # """ #?????????????????????? | | """""#?????????# ## """ #?????????????????????? | | ""#?????????# # """ #?????????????????????? | | ""#?????????# ## """ #?????????????????????? | | ""#?????????# ## #?????????????????????? | | ""#????????## ## """ #?????????????????????? | | ""#???###### # """ #?????????????????????? | +----------------------------------------------------+ Best States ------------- Heat Dissipation 74 Energy Generation 33 Energy Capacity 315 Matter Stores 300 Matter Capacity 300 Sight Range 24 Robot Scan Range 16 Terrain Scan Density 10 Armor Coverage 225 Core Shielding 30 Weapon Shielding 66 Evasion (%) 67 Targeting Accuracy 36 Core Analysis 8 Recoil Reduction 4 Salvage Targeting 1 Offensive Hacking 14 Defensive Hacking 20 Item Schematics ----------------- VTOL Module | -9/Materials | Scanalyzed Hacking Suite | -8/Materials | Scanalyzed System Shield | -7/Factory | Hacked Combat Drone Bay | -7/Data Miner | Free Lgt. Regenerative Plating | -7/Data Miner | Free Gravity Neutralizer | -7/Data Miner | Free Imp. Lightning Gun | -7/Data Miner | Free Nuclear Pulse Array | -7/Data Miner | Free Imp. Kinecellerator | -7/Data Miner | Free KE Penetrator | -7/Data Miner | Free Cld. Aerolev Unit | -7/Data Miner | Free Lgt. Angular Momentum Engine | -7/Data Miner | Free Imp. Point Defense System | -7/Data Miner | Free Cesium-ion Thruster | -6/Factory | Scanalyzed Sml. Storage Unit | -6/Factory | Scanalyzed Machine Analyzer | -6/Factory | Scanalyzed Lgt. Deuterium Engine | -6/Factory | Scanalyzed Rocket Launcher | -6/Factory | Scanalyzed Hvy. Missile Launcher | -6/Factory | Scanalyzed Imp. Cooling System | -6/Factory | Scanalyzed Adv. Visual Processing Unit | -6/Factory | Scanalyzed Cld. VTOL Module | -6/Factory | Hacked Lrn. Missile Launcher | -6/Factory | Hacked Assault Drone Bay | -5/Zhirov | Free Exp. Heat Sink | -5/Zhirov | Free Exp. Optical Array | -5/Zhirov | Free Imp. Arc Thrower | -5/Zhirov | Free Robot Schematics ------------------ M-14 Sweeper | -7/Data Miner | Free B-48 Gladiator | -7/Data Miner | Free G-47 Trooper | -7/Data Miner | Free G-50 Soldier | -7/Data Miner | Free Fabricated ------------ VTOL Module | x2 | -7/Factory Lrn. Missile Launcher | x1 | -6/Factory Cld. VTOL Module | x1 | -6/Factory Cld. VTOL Module | x1 | -6/Factory Cld. VTOL Module | x1 | -6/Factory Sml. Storage Unit | x1 | -5/Factory Cld. VTOL Module | x1 | -5/Factory Cld. VTOL Module | x1 | -4/Factory Repaired ---------- Rocket Launcher | 30% | -7/Factory VTOL Module | 16% | -7/Factory VTOL Module | 36% | -7/Factory VTOL Module | 36% | -7/Factory Chainsword | 74% | -6/Factory VTOL Module | 40% | -6/Factory Adv. Sensor Array | 29% | -5/Factory Alien Tech Used ----------------- Integrated Reactor Transdimensional Reconstructor Dimensional Node Initializer Achievements -------------- Reappropriation Challenges ------------ None Game ------ Seed MultireflexHardcellAxe Manual? 0 Play Time 03:19:25 Cumulative 148.6 hours Start 2025.06.30 @ 19:22:40 End 2025.06.30 @ 23:05:58 Sessions 1 Manual Loads 0 Difficulty Rogue Special Mode None Game No. 146 Rogue 146 Adventurer 0 Explorer 0 Win Type - Total 9 Types 5/0/2/2/0/0/0/0/0/0 Lore% 64 Gallery% 61 Achievement% 58 Wizard Run 0 Options --------- Layout 1 ASCII 0 Keyboard 0 Movement Numpad Keybinds 0 Fullscreen 1 Font 32/SmallcapsGlow Map View 77x35 Zoom Use 0% Tactical HUD 1 Map Filters NONE Filters NONE Steam 1 RUN: 31ddddf8-8061-4ad5-bb33-edc30a44fdf8